bitfinex/quotes_SOLUSD_20240718
["timestamp","ask_amount","ask_price","bid_price","bid_amount"]
[1721279538002,12.37,157.72,157.7,0.822604]
[1721279538208,12.37,157.71,157.7,0.822604]
[1721279546713,7.92541102,157.73,157.7,0.822604]
[1721279546714,1.58541102,157.73,157.7,0.822604]
[1721279546888,12.37,157.72,157.7,0.822604]
[1721279547526,12.37,157.72,157.71,6.3405]
[1721279547695,12.37,157.73,157.7,7.163604]
[1721279548919,12.37,157.72,157.7,7.163604]
[1721279549294,12.37,157.71,157.7,0.822604]
[1721279553724,18.7107,157.71,157.7,0.822604]
[1721279554429,6.3404,157.72,157.7,0.822604]
[1721279554612,13.95540921,157.71,157.7,0.822604]
[1721279557421,36.49771945,157.71,157.7,0.822604]
[1721279557610,48.86771945,157.71,157.7,0.822604]
[1721279558516,64.71951945,157.71,157.7,0.822604]
[1721279564113,64.71951945,157.71,157.61,15.8611]
[1721279564314,15.8549,157.68,157.57,25.8652]
[1721279564519,12.37,157.63,157.59,15.8631]
[1721279564704,12.37,157.63,157.61,6.3447]
[1721279565421,12.37,157.63,157.6,6.3451]
[1721279565619,12.37,157.63,157.61,45.0]
[1721279566027,1.58596504,157.62,157.59,15.8631]
[1721279566210,12.37,157.6,157.59,15.8631]
[1721279566624,12.37,157.61,157.59,15.8631]
[1721279566934,12.37,157.62,157.6,6.3451]
[1721279567423,1.58616496,157.61,157.56,15.8667]
[1721279567630,12.37,157.59,157.57,6.3462]
[1721279568336,12.37,157.6,157.59,6.3455]
[1721279568634,12.37,157.6,157.57,6.346]
[1721279568828,12.37,157.59,157.58,45.0]
[1721279569710,12.37,157.59,157.56,22.2134]
[1721279569930,12.37,157.58,157.56,22.2134]
[1721279570231,12.37,157.59,157.57,6.3463]
[1721279570611,12.37,157.58,157.54,23.432304]
[1721279570814,12.37,157.57,157.54,23.432304]
[1721279571012,12.37,157.58,157.55,6.3468]
[1721279571230,12.37,157.58,157.56,6.3465]
[1721279571432,12.37,157.59,157.56,6.3465]
[1721279571635,12.37,157.58,157.56,6.3465]
[1721279571835,12.37,157.57,157.55,6.3471]
[1721279572030,12.37,157.57,157.56,45.0]
[1721279573328,12.37,157.58,157.56,45.0]
[1721279575335,12.37,157.58,157.56,51.3467]
[1721279577125,12.37,157.57,157.56,45.0]
[1721279577723,23.59238876,157.6,157.55,6.3471]
[1721279578040,17.24718876,157.6,157.56,6.3467]
[1721279578236,12.37,157.58,157.56,6.3467]
[1721279579741,1.58658876,157.6,157.56,6.3467]
[1721279579925,12.37,157.59,157.57,6.3463]
[1721279580245,12.37,157.59,157.56,6.3467]
[1721279580953,1.58653081,157.63,157.57,10.0]
[1721279581239,1.58608258,157.67,157.63,6.3439]
[1721279581448,13.95608258,157.67,157.63,6.3439]
[1721279582025,13.95608258,157.67,157.64,6.3435]
[1721279582720,13.95608258,157.67,157.63,6.3439]
[1721279582917,13.95608258,157.67,157.64,51.3435]
[1721279583236,12.37,157.68,157.64,67.2017]
[1721279583743,1.58573224,157.67,157.64,60.8585]
[1721279584149,7.92823224,157.67,157.62,6.3443]
[1721279584327,12.37,157.66,157.63,45.0]
[1721279584535,1.58587741,157.65,157.63,45.0]
[1721279585342,1.58590106,157.72,157.63,60.859]
[1721279585539,1.58590106,157.72,157.63,55.0]
[1721279585540,12.37,157.7,157.63,55.0]
[1721279585844,1.58550076,157.69,157.66,22.1994]
[1721279586049,12.37,157.69,157.67,45.0]
[1721279586223,1.58548113,157.71,157.67,45.0]
[1721279586424,1.58548113,157.71,157.67,58.63828661]
[1721279586745,1.58548113,157.71,157.68,6.3419]
[1721279587258,13.95535703,157.72,157.68,6.3419]
[1721279587643,12.37,157.71,157.67,45.0]
[1721279587951,1.58537924,157.7,157.67,45.0]
[1721279588548,13.95537924,157.7,157.67,45.0]
[1721279588726,1.58549863,157.69,157.67,45.0]
[1721279591042,13.95549863,157.69,157.64,6.3433]
[1721279591356,12.37,157.66,157.63,15.8599]
[1721279592547,1.58585985,157.65,157.63,15.8599]
[1721279592929,13.95602414,157.64,157.61,6.3446]
[1721279593248,12.37,157.66,157.62,1.26886438]
[1721279593444,13.95608047,157.65,157.61,22.2053]
[1721279593647,12.37,157.65,157.62,6.3443]
[1721279595230,12.37,157.65,157.61,22.2056]
[1721279595435,12.37,157.65,157.62,6.3442]
[1721279595760,13.62067425,157.66,157.63,45.0]
[1721279595934,12.37,157.65,157.62,6.3442]
[1721279596134,13.62067425,157.66,157.63,45.0]
[1721279596360,12.37,157.66,157.64,6.3435]
[1721279596855,12.37,157.66,157.63,51.3438]
[1721279597537,12.37,157.66,157.63,45.0]
[1721279597743,13.95589824,157.65,157.63,45.0]
[1721279598255,13.95589824,157.65,157.62,45.0]
[1721279598453,13.95589824,157.65,157.61,22.2056]
[1721279598657,13.95595191,157.64,157.61,22.2056]
[1721279598850,12.37,157.64,157.61,22.2056]
[1721279599561,12.37,157.65,157.62,6.3442]
[1721279599871,12.37,157.65,157.63,45.0]
[1721279600246,12.37,157.66,157.63,45.0]
[1721279601144,12.37,157.66,157.62,51.344]
[1721279601344,12.37,157.65,157.62,51.344]
[1721279601646,12.37,157.65,157.62,45.0]
[1721279603578,13.95589045,157.66,157.62,52.61301236]
[1721279604068,13.95589045,157.66,157.62,51.3443]
[1721279605172,13.95589045,157.66,157.62,52.61301134]
[1721279605564,13.95589045,157.66,157.62,51.3443]
[1721279606269,13.95589045,157.66,157.62,52.61301056]
[1721279607071,13.95589045,157.66,157.62,51.3443]
[1721279607274,12.37,157.65,157.62,45.0]
[1721279607476,13.95603907,157.64,157.61,15.8609]
[1721279607869,12.37,157.64,157.61,15.8609]
[1721279608179,1.58603715,157.66,157.61,15.8609]
[1721279608345,12.37,157.63,157.61,15.8609]
[1721279609048,12.37,157.62,157.58,22.2103]
[1721279609250,12.37,157.61,157.59,6.3454]
[1721279609476,12.37,157.6,157.59,6.3454]
[1721279610259,12.37,157.61,157.58,15.8648]
[1721279610452,12.37,157.61,157.6,6.3451]
[1721279610655,12.37,157.61,157.6,51.3451]
[1721279611182,12.37,157.61,157.6,45.0]
[1721279611349,12.37,157.61,157.59,6.3455]
[1721279612050,13.95634009,157.6,157.58,22.2107]
[1721279612247,12.37,157.6,157.58,22.2107]
[1721279613257,13.95646886,157.62,157.58,15.8648]
[1721279613457,12.37,157.62,157.59,45.0]
[1721279615088,12.37,157.62,157.6,6.3448]
[1721279617282,12.37,157.62,157.59,51.3455]
[1721279617488,15.7969,157.67,157.61,15.8619]
[1721279617489,1.58626164,157.63,157.61,15.8619]
[1721279617659,12.37,157.63,157.61,15.8619]
[1721279618856,12.37,157.63,157.6,6.3448]
[1721279619062,15.7969,157.67,157.54,49.022804]
[1721279619063,1.5861898,157.62,157.54,49.022804]
[1721279619358,12.37,157.6,157.55,45.0]
[1721279619670,12.37,157.6,157.55,57.37]
[1721279620060,12.37,157.6,157.57,6.3463]
[1721279620372,12.37,157.6,157.58,45.0]
[1721279620572,12.37,157.6,157.58,51.3459]
[1721279621070,12.37,157.6,157.57,6.3463]
[1721279621674,12.37,157.6,157.58,6.3459]
[1721279622484,12.37,157.6,157.56,6.3464]
[1721279622702,12.37,157.58,157.56,6.3464]
[1721279622978,15.5133,157.61,157.55,15.8679]
[1721279622979,13.95656122,157.57,157.55,15.8679]
[1721279623185,12.37,157.56,157.54,0.822604]
[1721279623390,12.37,157.55,157.54,7.170104]
[1721279623775,12.37,157.55,157.54,0.822604]
[1721279624264,6.3471,157.55,157.54,0.822604]
[1721279624458,12.37,157.55,157.54,0.822604]
[1721279625373,34.0685,157.55,157.54,0.822604]
[1721279625881,46.4385,157.55,157.54,0.822604]
[1721279626072,21.6985,157.55,157.54,0.822604]
[1721279626287,34.0685,157.55,157.54,0.822604]
[1721279628061,46.4385,157.55,157.54,0.822604]
[1721279628493,34.0685,157.55,157.54,0.822604]
[1721279628884,21.6985,157.55,157.54,0.822604]
[1721279629183,27.7214,157.55,157.54,0.822604]
[1721279629568,12.37,157.55,157.54,0.822604]
[1721279630772,18.7171,157.55,157.54,0.822604]
[1721279637619,12.37,157.55,157.54,0.822604]
[1721279637808,18.7171,157.55,157.54,0.822604]
[1721279641212,6.3487,157.52,157.46,31.2565]
[1721279641508,12.37,157.49,157.46,22.2266]
[1721279642801,12.37,157.49,157.47,45.0]
[1721279643110,12.37,157.49,157.46,22.2266]
[1721279643321,18.7196,157.49,157.43,10.0]
[1721279643500,12.37,157.49,157.45,6.3511]
[1721279643694,12.37,157.49,157.46,51.3508]
[1721279644803,12.37,157.49,157.46,52.62078522]
[1721279645001,12.37,157.49,157.46,51.3508]
[1721279645795,12.37,157.49,157.45,15.878]
[1721279645996,1.58751788,157.48,157.43,6.3516]
[1721279646212,1.58751788,157.48,157.41,22.2338]
[1721279646413,12.37,157.44,157.42,6.3522]
[1721279646720,12.37,157.45,157.42,6.3522]
[1721279647122,12.37,157.45,157.44,6.3516]
[1721279647302,12.37,157.45,157.42,6.3521]
[1721279647507,12.37,157.46,157.43,7.62211588]
[1721279647710,7.93677096,157.51,157.44,15.8788]
[1721279647900,12.37,157.48,157.44,15.8788]
[1721279648103,12.37,157.48,157.38,19.842604]
[1721279648104,1.58763003,157.53,157.46,22.37]
[1721279648294,12.37,157.52,157.5,6.3491]
[1721279648620,12.37,157.52,157.51,6.3488]
[1721279648808,12.37,157.52,157.49,15.873]
[1721279648809,224.585603,157.54,157.53,6.3479]
[1721279649010,224.585603,157.54,157.52,15.8709]
[1721279649196,236.955603,157.54,157.52,15.8709]
[1721279649623,224.585603,157.54,157.52,15.8709]
[1721279650400,236.955603,157.54,157.52,15.8709]
[1721279650917,236.955603,157.54,157.51,6.3486]
[1721279651216,13.95705404,157.53,157.5,6.3491]
[1721279651619,13.95705404,157.53,157.48,15.8741]
[1721279651620,13.95705404,157.53,157.48,22.2237]
[1721279651811,12.37,157.52,157.49,6.3495]
[1721279652413,12.37,157.52,157.48,22.2237]
[1721279652728,1.58731353,157.51,157.48,22.2237]
[1721279653027,12.37,157.5,157.46,6.3504]
[1721279653200,1.58751628,157.49,157.46,6.3504]
[1721279653827,13.95764099,157.48,157.46,6.3504]
[1721279654013,12.37,157.48,157.46,6.3504]
[1721279654212,1.58762261,157.5,157.46,6.3504]
[1721279655230,1.58751637,157.51,157.47,6.3503]
[1721279655612,1.58751637,157.51,157.46,6.3507]
[1721279655811,7.93651637,157.51,157.46,6.3507]
[1721279656117,6.349,157.51,157.46,6.3507]
[1721279658029,6.3492,157.5,157.45,7.62120947]
[1721279658230,1.58758026,157.49,157.46,45.0]
[1721279659225,6.3492,157.5,157.45,6.3511]
[1721279659543,1.58763557,157.49,157.45,6.3511]
[1721279659834,1.58763774,157.48,157.44,22.2295]
[1721279660146,1.58763774,157.48,157.45,45.0]
[1721279660639,1.58763774,157.48,157.44,22.2295]
[1721279661018,7.93763774,157.48,157.44,15.878]
[1721279661218,1.58787664,157.47,157.44,15.878]
[1721279663033,1.58787664,157.47,157.44,22.2296]
[1721279663215,16.2101,157.51,157.45,1.27029791]
[1721279663417,16.2101,157.51,157.45,46.27029791]
[1721279663713,6.3492,157.5,157.45,51.3511]
[1721279663910,1.58756031,157.49,157.45,52.62114825]
[1721279664119,1.58756031,157.49,157.45,51.3511]
[1721279665437,1.58762399,157.48,157.45,51.3511]
[1721279666316,1.58765206,157.49,157.45,51.3511]
[1721279666722,1.58764912,157.48,157.45,51.3511]
[1721279667131,1.58764912,157.48,157.44,22.2295]
[1721279667714,1.58774107,157.49,157.46,6.3504]
[1721279667920,1.58763265,157.48,157.44,22.2295]
[1721279668118,1.58763265,157.48,157.45,45.0]
[1721279668415,1.58763265,157.48,157.44,22.2295]
[1721279671335,1.58770657,157.49,157.46,6.3508]
[1721279671541,1.58770657,157.49,157.45,1.27010361]
[1721279671728,1.58770657,157.49,157.45,52.62120361]
[1721279671926,1.58770657,157.49,157.45,46.27010361]
[1721279672232,6.3496,157.49,157.45,45.0]
[1721279672429,1.58766541,157.51,157.45,51.3511]
[1721279672738,1.58766541,157.51,157.39,10.0]
[1721279672739,6.3495,157.5,157.39,10.0]
[1721279672939,1.58762835,157.49,157.4,0.34]
[1721279673152,1.58762835,157.48,157.4,0.34]
[1721279674045,45.0,157.51,157.44,6.3515]
[1721279674046,7.93742844,157.49,157.44,6.3515]
[1721279674344,12.41,157.47,157.41,12.41]
[1721279674543,12.41,157.47,157.42,0.34]
[1721279674923,13.99770704,157.48,157.42,12.75]
[1721279675231,12.41,157.49,157.44,12.41]
[1721279675549,12.41,157.49,157.46,6.3507]
[1721279675723,12.41,157.49,157.46,6.71343952]
[1721279676347,12.41,157.49,157.45,22.2289]
[1721279676646,13.99751585,157.49,157.45,22.2289]
[1721279677741,6.4202,157.52,157.48,15.8749]
[1721279678033,12.41,157.5,157.44,12.41]
[1721279678237,12.41,157.5,157.45,12.77234511]
[1721279678739,12.41,157.5,157.46,0.36273351]
[1721279678939,12.41,157.5,157.46,6.71353351]
[1721279679943,12.41,157.49,157.46,6.71353351]
[1721279681025,6.4202,157.52,157.46,0.36273351]
[1721279683135,12.41,157.49,157.45,22.2289]
[1721279683720,12.41,157.49,157.46,6.71343022]
[1721279684135,12.41,157.5,157.46,6.71343022]
[1721279686753,12.41,157.5,157.46,6.3506]
[1721279686938,12.41,157.49,157.46,6.3506]
[1721279687635,12.41,157.48,157.46,6.3506]
[1721279688155,12.41,157.48,157.45,22.229]
[1721279688343,12.41,157.47,157.45,22.229]
[1721279688734,12.41,157.48,157.45,22.229]
[1721279690660,12.41,157.49,157.45,22.229]
[1721279690953,13.99764062,157.48,157.45,22.229]
[1721279691835,12.41,157.48,157.45,22.229]
[1721279695658,6.2263,157.47,157.41,15.8811]
[1721279695957,12.41,157.45,157.41,15.8811]
[1721279696152,12.41,157.46,157.41,28.2911]
[1721279696937,12.41,157.46,157.41,15.8811]
[1721279697343,12.41,157.46,157.41,28.2911]
[1721279697867,12.41,157.47,157.42,12.41]
[1721279698059,12.41,157.47,157.44,6.3513]
[1721279698272,13.99796145,157.48,157.44,6.3513]
[1721279700256,12.41,157.47,157.43,6.3519]
[1721279701158,1.58764203,157.47,157.42,6.3521]
[1721279701363,13.99764203,157.47,157.42,18.7621]
[1721279701738,12.41,157.47,157.43,0.36326528]
[1721279702035,20.34793292,157.48,157.43,6.71516528]
[1721279702238,20.34793292,157.48,157.43,6.3519]
[1721279702674,17.61314355,157.49,157.44,28.65219081]
[1721279702961,28.4354,157.49,157.44,34.6404]
[1721279703162,28.4354,157.49,157.45,6.3511]
[1721279703459,28.4354,157.49,157.45,6.71385196]
[1721279703966,28.4354,157.49,157.46,6.3507]
[1721279704141,6.3493,157.5,157.45,15.75907619]
[1721279704342,13.99744493,157.53,157.49,6.3495]
[1721279704549,13.99715364,157.55,157.5,0.36187501]
[1721279704853,20.3442597,157.55,157.5,12.77187501]
[1721279705668,20.3442597,157.55,157.5,6.71077501]
[1721279705669,12.41,157.54,157.5,6.71077501]
[1721279705877,20.34460098,157.54,157.49,12.41]
[1721279706038,1.58700098,157.54,157.48,15.8742]
[1721279706241,12.41,157.51,157.46,0.36210317]
[1721279706445,13.9974322,157.5,157.46,6.3508]
[1721279706677,1.5874322,157.5,157.46,6.71334546]
[1721279706872,1.5874322,157.5,157.46,6.3508]
[1721279707057,13.9974322,157.5,157.46,6.3508]
[1721279707371,12.41,157.49,157.45,22.2288]
[1721279707582,12.41,157.48,157.45,22.2288]
[1721279707874,13.9975362,157.49,157.45,22.2288]
[1721279708455,13.9975362,157.49,157.46,6.3506]
[1721279709075,13.9975362,157.49,157.45,15.8778]
[1721279709273,13.9975362,157.49,157.45,22.2289]
[1721279710201,13.99755512,157.48,157.45,22.2289]
[1721279710371,18.7608,157.46,157.41,34.6439]
[1721279710572,13.99801464,157.45,157.41,22.2339]
[1721279711093,12.41,157.46,157.42,0.36385214]
[1721279711390,13.99785592,157.45,157.41,15.8811]
[1721279711571,12.41,157.45,157.41,15.8811]
[1721279711773,12.41,157.45,157.41,16.24487083]
[1721279711972,12.41,157.45,157.42,6.3522]
[1721279712281,13.99794766,157.44,157.42,6.3522]
[1721279712591,12.41,157.45,157.42,6.3522]
[1721279713094,1.58794562,157.44,157.41,15.8811]
[1721279713399,13.99794562,157.44,157.41,15.8811]
[1721279713602,12.41,157.44,157.41,15.8811]
[1721279713984,1.58802078,157.45,157.43,15.8791]
[1721279714183,12.41,157.46,157.43,15.8791]
[1721279714410,12.41,157.46,157.43,22.2309]
[1721279714782,12.41,157.46,157.4,0.36370774]
[1721279714783,13.99788469,157.45,157.41,6.3525]
[1721279715907,13.99800262,157.44,157.41,6.3525]
[1721279716116,12.41,157.43,157.4,6.3532]
[1721279716894,13.99815581,157.42,157.39,6.3536]
[1721279717897,1.58830466,157.41,157.39,6.3536]
[1721279718403,13.99830466,157.41,157.39,6.3536]
[1721279718607,12.41,157.41,157.39,6.3536]
[1721279721004,12.41,157.4,157.38,15.8842]
[1721279721188,12.41,157.39,157.38,15.8842]
[1721279722598,12.41,157.39,157.38,22.2382]
[1721279722900,1.58846929,157.41,157.38,22.2382]
[1721279722901,12.41,157.4,157.38,22.2382]
[1721279723106,12.41,157.4,157.39,6.3536]
[1721279723306,12.41,157.41,157.4,6.3531]
[1721279723629,13.99843724,157.42,157.4,6.3531]
[1721279724316,12.41,157.41,157.39,6.3536]
[1721279724522,12.41,157.41,157.38,22.2381]
[1721279726321,12.41,157.4,157.38,22.2381]
[1721279727743,13.99833601,157.39,157.36,6.3546]
[1721279727922,12.41,157.38,157.34,15.8883]
[1721279728231,12.41,157.38,157.35,6.3549]
[1721279728399,12.41,157.38,157.36,6.3548]
[1721279729620,12.41,157.38,157.34,15.8883]
[1721279729821,12.41,157.37,157.35,6.3551]
[1721279730022,12.41,157.36,157.35,6.3551]
[1721279731926,1.58872857,157.42,157.37,15.886]
[1721279732106,12.41,157.41,157.4,6.3532]
[1721279732312,12.41,157.41,157.39,6.3535]
[1721279732523,1.58872857,157.42,157.4,15.8828]
[1721279732725,13.99872857,157.42,157.41,6.3528]
[1721279732900,12.41,157.42,157.41,6.3528]
[1721279733221,12.41,157.42,157.4,15.8828]
[1721279733406,13.99826383,157.42,157.4,15.8828]
[1721279733607,12.41,157.41,157.4,15.8828]
[1721279734622,13.99826383,157.42,157.4,15.8828]
[1721279734813,1.58827403,157.48,157.43,15.8799]
[1721279735002,12.41,157.45,157.44,6.3516]
[1721279735213,15.471,157.49,157.47,6.3504]
[1721279735514,13.99752655,157.48,157.45,15.8771]
[1721279735826,1.58752655,157.48,157.42,15.881]
[1721279736027,12.41,157.47,157.45,6.3511]
[1721279736329,12.41,157.47,157.46,6.3508]
[1721279736518,12.41,157.47,157.45,15.8779]
[1721279736723,12.41,157.46,157.44,6.3512]
[1721279736908,1.58779123,157.45,157.42,22.233]
[1721279737309,13.99779123,157.45,157.42,22.233]
[1721279737528,12.41,157.45,157.42,22.233]
[1721279737929,13.99789052,157.44,157.42,15.881]
[1721279738241,12.41,157.44,157.42,15.881]
[1721279738614,12.41,157.45,157.42,22.2333]
[1721279738819,12.41,157.45,157.43,6.3519]
[1721279739127,1.58796784,157.44,157.42,22.2334]
[1721279739311,13.99796784,157.44,157.42,22.2334]
[1721279739730,13.99796784,157.44,157.42,15.881]
[1721279739940,12.41,157.44,157.42,15.881]
[1721279740311,12.41,157.44,157.39,15.884]
[1721279740513,12.41,157.43,157.39,15.884]
[1721279740732,12.41,157.4,157.39,15.884]
[1721279741129,28.7648,157.42,157.4,6.353]
[1721279741441,16.3548,157.42,157.41,6.3528]
[1721279742007,28.7648,157.42,157.4,6.3532]
[1721279742211,6.1235,157.43,157.41,6.3528]
[1721279742212,12.41,157.43,157.41,6.3528]
[1721279743547,12.41,157.43,157.39,22.2373]
[1721279743735,12.41,157.42,157.39,22.2373]
[1721279745226,12.41,157.4,157.37,6.3542]
[1721279745428,12.41,157.4,157.38,6.354]
[1721279746319,1.58836692,157.42,157.38,6.354]
[1721279746617,12.41,157.41,157.38,6.354]
[1721279747055,1.5882864,157.43,157.4,6.3532]
[1721279747236,1.5882864,157.45,157.42,6.3524]
[1721279747434,13.9982864,157.45,157.42,6.3524]
[1721279747617,1.5882864,157.45,157.42,6.3524]
[1721279748915,27.7639,157.46,157.41,0.36386069]
[1721279749121,27.7639,157.46,157.43,6.3519]
[1721279749319,18.5902,157.47,157.43,0.36347489]
[1721279749519,18.5902,157.47,157.43,6.71537489]
[1721279750017,12.41,157.46,157.43,6.71537489]
[1721279750933,13.99781203,157.46,157.42,22.2333]
[1721279752122,7.76810271,157.47,157.43,6.71557279]
[1721279752322,12.41,157.46,157.43,6.71557279]
[1721279752730,20.17810271,157.47,157.43,6.71557279]
[1721279753428,18.5902,157.47,157.43,6.71557279]
[1721279755743,16.1178,157.5,157.44,16.24153688]
[1721279755946,16.1178,157.5,157.46,6.3508]
[1721279756133,12.41,157.49,157.46,6.3508]
[1721279756839,28.5278,157.5,157.46,6.3508]
[1721279757343,12.41,157.51,157.47,6.71285427]
[1721279757540,12.41,157.51,157.46,6.3507]
[1721279757729,20.34623556,157.51,157.46,6.3507]
[1721279757925,12.41,157.5,157.46,6.3507]
[1721279758830,13.99733556,157.51,157.46,6.3507]
[1721279759033,12.41,157.51,157.46,6.3507]
[1721279759231,12.41,157.51,157.47,0.36230231]
[1721279759531,13.99733268,157.53,157.48,12.41]
[1721279759729,12.41,157.53,157.49,6.71098346]
[1721279759942,35.1065,157.54,157.49,6.71098346]
[1721279760345,13.99707046,157.53,157.48,18.7599]
[1721279760648,12.41,157.53,157.49,0.3618233]
[1721279761143,12.41,157.53,157.49,6.7112233]
[1721279761325,12.41,157.53,157.5,6.349]
[1721279761525,28.7586,157.54,157.51,0.36149597]
[1721279761722,12.41,157.54,157.51,0.36149597]
[1721279762524,20.34419504,157.55,157.51,0.36149597]
[1721279762731,12.41,157.55,157.51,0.36149597]
[1721279763048,12.41,157.56,157.52,6.3483]
[1721279763245,8.16029353,157.57,157.52,6.70951725]
[1721279763246,20.57029353,157.57,157.52,6.70951725]
[1721279763452,26.91669353,157.57,157.52,6.70951725]
[1721279763626,20.57029353,157.57,157.52,0.36121725]
[1721279763827,18.9833,157.57,157.53,6.3478]
[1721279764132,18.9833,157.57,157.54,6.7082832]
[1721279764636,12.41,157.58,157.54,6.3475]
[1721279764844,12.41,157.58,157.55,6.70750448]
[1721279765038,14.31124092,157.61,157.56,6.3465]
[1721279765261,12.41,157.6,157.57,0.35994049]
[1721279765449,12.41,157.6,157.55,15.867]
[1721279766035,12.41,157.6,157.55,22.2141]
[1721279766227,12.41,157.58,157.55,15.867]
[1721279766763,1.58648571,157.59,157.55,22.214]
[1721279766953,12.41,157.59,157.55,22.57449227]
[1721279767163,12.41,157.6,157.57,6.3463]
[1721279767541,20.37613617,157.61,157.56,19.11676]
[1721279767732,1.58653617,157.61,157.56,19.11676]
[1721279767948,28.6581,157.62,157.57,6.70582527]
[1721279768135,35.0026,157.62,157.57,6.70582527]
[1721279768334,20.34109782,157.61,157.56,18.7567]
[1721279768544,1.58635012,157.6,157.56,18.7567]
[1721279768852,13.99635012,157.6,157.55,34.6241]
[1721279769361,12.41,157.6,157.55,34.6241]
[1721279769771,13.99640142,157.6,157.55,34.6241]
[1721279770077,20.34170142,157.6,157.55,22.2141]
[1721279770233,7.93120143,157.61,157.56,19.11656971]
[1721279770432,20.34120143,157.61,157.56,19.11656971]
[1721279770836,16.2481,157.62,157.59,6.3455]
[1721279770837,12.41,157.62,157.59,6.3455]
[1721279771042,13.99621471,157.63,157.59,6.3455]
[1721279771536,6.3439,157.64,157.59,6.3455]
[1721279771537,13.99618419,157.64,157.6,0.35954835]
[1721279771735,12.41,157.64,157.6,0.35954835]
[1721279772236,13.99604832,157.65,157.6,19.11464835]
[1721279772431,13.99604832,157.65,157.61,0.35901654]
[1721279772754,13.99604832,157.65,157.6,6.3451]
[1721279772934,12.41,157.66,157.61,6.3445]
[1721279773146,12.41,157.64,157.6,22.2076]
[1721279773339,12.41,157.64,157.6,15.8625]
[1721279773558,12.41,157.64,157.6,22.2076]
[1721279773759,13.99599479,157.64,157.6,22.2076]
[1721279774338,6.3435,157.65,157.61,0.35906943]
[1721279774557,1.58599456,157.64,157.6,34.6176]
[1721279774862,13.99599456,157.64,157.6,22.2076]
[1721279775072,18.7535,157.65,157.61,0.35906036]
[1721279775372,12.41,157.65,157.61,6.3447]
[1721279775881,12.41,157.65,157.62,0.35892384]
[1721279776641,12.41,157.65,157.61,6.3447]
[1721279776838,12.41,157.65,157.62,6.3443]
[1721279777042,12.41,157.66,157.62,6.3443]
[1721279777559,12.41,157.66,157.61,18.7547]
[1721279778055,6.3424,157.67,157.62,6.3443]
[1721279778262,12.41,157.66,157.62,6.3443]
[1721279778650,18.7527,157.66,157.61,12.41]
[1721279778851,12.41,157.66,157.61,12.41]
[1721279779146,12.41,157.66,157.6,28.6125]
[1721279779342,1.58578102,157.65,157.6,28.4425]
[1721279779551,13.99578102,157.65,157.6,28.2725]
[1721279779751,12.41,157.64,157.6,15.8625]
[1721279780345,12.41,157.64,157.6,22.566916]
[1721279780661,18.7535,157.64,157.6,15.8625]
[1721279780858,12.41,157.64,157.6,22.2075]
[1721279781059,12.41,157.64,157.61,0.35923678]
[1721279781253,12.41,157.65,157.61,6.70373678]
[1721279781457,12.41,157.65,157.61,6.3445]
[1721279781660,13.99585458,157.65,157.61,6.3445]
[1721279781846,13.99585458,157.65,157.6,15.8625]
[1721279782048,12.41,157.61,157.56,15.866]
[1721279782265,12.41,157.59,157.56,22.2127]
[1721279782565,6.3448,157.61,157.56,22.2126]
[1721279782766,12.41,157.6,157.56,22.2126]
[1721279783147,12.41,157.61,157.58,6.3458]